fUST/lending_fUST_20250731
["ID","MTS","AMOUNT","RATE_DAILY","PERIOD"]
[376248419,1753906239989,-2233.28,0.00022558,2]
[376248421,1753906239998,-460.0,0.00022558,2]
[376248423,1753906240008,-460.0,0.00022558,2]
[376248425,1753906240018,-384.88337341,0.00022558,2]
[376248427,1753906240028,-460.0,0.00022558,2]
[376248429,1753906240038,-460.0,0.00022558,2]
[376248431,1753906240047,-460.0,0.00022558,2]
[376248433,1753906240057,-460.0,0.00022558,2]
[376248435,1753906240066,-271.26507599,0.00022558,2]
[376248437,1753906240076,-1773.75,0.00022558,2]
[376248439,1753906240086,-460.0,0.00022558,2]
[376248442,1753906240096,-592.4,0.00022558,2]
[376248444,1753906240105,-460.0,0.00022558,2]
[376248446,1753906240115,-3486.61,0.00022558,2]
[376248448,1753906240124,-981.84,0.00022558,2]
[376248449,1753906240134,-621.21,0.00022558,2]
[376248451,1753906240145,-460.0,0.00022558,2]
[376248453,1753906240155,-460.0,0.00022558,2]
[376248456,1753906240164,-460.0,0.00022558,2]
[376248458,1753906240174,-460.0,0.00022558,2]
[376248460,1753906240183,-487.46,0.00022558,2]
[376248462,1753906240193,-460.0,0.00022559,2]
[376248464,1753906240202,-460.0,0.00022559,2]
[376248466,1753906240214,-460.0,0.00022559,2]
[376248468,1753906240223,-537.79,0.00022559,2]
[376248470,1753906240234,-460.0,0.00022559,2]
[376248472,1753906240244,-1233.36,0.0002256,2]
[376248474,1753906240254,-1201.36,0.0002256,2]
[376248476,1753906240264,-584.19,0.0002256,2]
[376248478,1753906240274,-225.12,0.00022567,2]
[376248480,1753906240284,-201.62407296,0.00022653,2]
[376248482,1753906240293,-820.06,0.00022737,2]
[376248484,1753906240303,-1442.48,0.00022737,2]
[376248486,1753906240312,-460.0,0.00022737,2]
[376248488,1753906240321,-419.03,0.00022821,3]
[376248490,1753906240330,-460.0,0.00022831,2]
[376248492,1753906240339,-500.0,0.00022831,2]
[376248494,1753906240348,-460.0,0.00022831,2]
[376248496,1753906240358,-460.0,0.00022831,2]
[376248498,1753906240367,-1261.41,0.00022831,2]
[376248500,1753906240377,-460.0,0.00022832,2]
[376248502,1753906240387,-460.0,0.00022832,2]
[376248504,1753906240396,-460.0,0.00022832,2]
[376248506,1753906240405,-460.0,0.00022832,2]
[376248508,1753906240415,-2233.28,0.00022832,2]
[376248510,1753906240424,-460.0,0.00022832,2]
[376248512,1753906240433,-460.0,0.00022832,2]
[376248514,1753906240442,-460.0,0.00022832,2]
[376248516,1753906240451,-217.72235586,0.00022832,2]
[376248692,1753906242126,-1346.55,0.00021736,2]
[376248694,1753906242136,-242.27764414,0.00022832,2]
[376248696,1753906242145,-460.0,0.00022832,2]
[376248698,1753906242154,-460.0,0.00022832,2]
[376248700,1753906242164,-1773.75,0.00022832,2]
[376248702,1753906242174,-460.0,0.00022832,2]
[376248704,1753906242183,-592.4,0.00022832,2]
[376248708,1753906242193,-460.0,0.00022832,2]
[376248710,1753906242203,-3486.61,0.00022832,2]
[376248712,1753906242213,-981.84,0.00022832,2]
[376248714,1753906242222,-621.21,0.00022832,2]
[376248715,1753906242231,-460.0,0.00022832,2]
[376248717,1753906242240,-442.09856297,0.00022832,2]
[376248725,1753906242297,-1346.55,0.0002201,2]
[376248727,1753906242307,-1346.55,0.00022284,2]
[376248729,1753906242316,-116.07707144,0.00022558,2]
[376248731,1753906242327,-560.21507816,0.00022558,2]
[376248733,1753906242338,-670.2578504,0.00022558,2]
[376248735,1753906242347,-17.90143703,0.00022832,2]
[376248737,1753906242357,-460.0,0.00022832,2]
[376248739,1753906242366,-460.0,0.00022832,2]
[376248741,1753906242375,-487.46,0.00022832,2]
[376248743,1753906242384,-815.38071257,0.00022832,2]
[376248746,1753906242407,-531.16928743,0.00022832,2]
[376248749,1753906242416,-320.16044497,0.00022833,2]
[376248751,1753906242426,-460.0,0.00022833,2]
[376248754,1753906242435,-460.0,0.00022833,2]
[376248756,1753906242444,-537.79,0.00022833,2]
[376248758,1753906242454,-460.0,0.00022833,2]
[376248760,1753906242465,-1233.36,0.00022834,2]
[376248762,1753906242474,-1201.36,0.00022834,2]
[376248764,1753906242483,-584.19,0.00022834,2]
[376248767,1753906242492,-848.87,0.00023,2]
[376248769,1753906242502,-151.0,0.00023,7]
[376248771,1753906242511,-160.0,0.00023,2]
[376248773,1753906242520,-820.06,0.00023011,2]
[376248775,1753906242530,-1442.48,0.00023011,2]
[376248777,1753906242539,-460.0,0.00023011,2]
[376248779,1753906242549,-460.0,0.00023105,2]
[376248781,1753906242558,-509.37948221,0.00023105,2]
[376248783,1753906242568,-460.0,0.00023105,2]
[376248784,1753906242577,-460.0,0.00023105,2]
[376248787,1753906242587,-1261.41,0.00023105,2]
[376248789,1753906242596,-460.0,0.00023106,2]
[376248791,1753906242605,-460.0,0.00023106,2]
[376248792,1753906242614,-460.0,0.00023106,2]
[376248794,1753906242624,-460.0,0.00023106,2]
[376248797,1753906242636,-2233.28,0.00023106,2]
[376248799,1753906242646,-460.0,0.00023106,2]
[376248801,1753906242657,-460.0,0.00023106,2]
[376248803,1753906242666,-460.0,0.00023106,2]
[376248805,1753906242677,-460.0,0.00023106,2]
[376248807,1753906242686,-460.0,0.00023106,2]
[376248809,1753906242695,-460.0,0.00023106,2]
[376248811,1753906242706,-1773.75,0.00023106,2]
[376248813,1753906242716,-460.0,0.00023106,2]
[376248815,1753906242726,-592.4,0.00023106,2]
[376248817,1753906242735,-460.0,0.00023106,2]
[376248819,1753906242744,-3486.61,0.00023106,2]
[376248821,1753906242754,-981.84,0.00023106,2]
[376248823,1753906242763,-621.21,0.00023106,2]
[376248825,1753906242772,-460.0,0.00023106,2]
[376248827,1753906242780,-460.0,0.00023106,2]
[376248829,1753906242790,-460.0,0.00023106,2]
[376248831,1753906242799,-303.4,0.00023106,2]
[376248845,1753906242921,-487.46,0.00023106,2]
[376248847,1753906242931,-1346.55,0.00023106,2]
[376248849,1753906242940,-460.0,0.00023107,2]
[376248851,1753906242949,-460.0,0.00023107,2]
[376248853,1753906242959,-537.79,0.00023107,2]
[376248855,1753906242968,-460.0,0.00023107,2]
[376248857,1753906242978,-1233.36,0.00023108,2]
[376248859,1753906242987,-1201.36,0.00023108,2]
[376248861,1753906242997,-584.19,0.00023108,2]
[376248863,1753906243006,-2060.87,0.00023131,2]
[376248865,1753906243015,-1049.64692828,0.00023134,2]
[376248867,1753906243025,-225.12,0.00023135,2]
[376248869,1753906243034,-1307.86356113,0.00023185,2]
[376248871,1753906243043,-1745.07,0.000232,7]
[376248873,1753906243053,-820.06,0.00023285,2]
[376248875,1753906243065,-1442.48,0.00023285,2]
[376248877,1753906243074,-460.0,0.00023285,2]
[376248878,1753906243084,-500.0,0.00023287,2]
[376248879,1753906243093,-160.0,0.000233,2]
[376248880,1753906243103,-970.0,0.0002331,2]
[376248881,1753906243113,-635.0,0.0002331,2]
[376248882,1753906243122,-407.0,0.0002331,2]
[376248883,1753906243131,-425.782,0.0002331,2]
[376248884,1753906243141,-420.0,0.00023334,2]
[376248885,1753906243150,-460.0,0.00023379,2]
[376248886,1753906243159,-460.0,0.00023379,2]
[376248887,1753906243169,-1261.41,0.00023379,2]
[376248888,1753906243178,-399.69,0.0002338,2]
[376248889,1753906243187,-420.83012525,0.0002338,2]
[376248890,1753906243197,-460.0,0.0002338,2]
[376248891,1753906243206,-460.0,0.0002338,2]
[376248892,1753906243216,-2233.28,0.0002338,2]
[376248893,1753906243225,-460.0,0.0002338,2]
[376248894,1753906243235,-566.21742259,0.0002338,2]
[376248895,1753906243245,-460.0,0.0002338,2]
[376248896,1753906243258,-460.0,0.0002338,2]
[376248897,1753906243268,-460.0,0.0002338,2]
[376248898,1753906243277,-460.0,0.0002338,2]
[376248900,1753906243286,-1773.75,0.0002338,2]
[376248901,1753906243295,-460.0,0.0002338,2]
[376248904,1753906243304,-592.4,0.0002338,2]
[376248906,1753906243313,-460.0,0.0002338,2]
[376248909,1753906243322,-3486.61,0.0002338,2]
[376248912,1753906243331,-981.84,0.0002338,2]
[376248914,1753906243341,-621.21,0.0002338,2]
[376248916,1753906243349,-460.0,0.0002338,2]
[376248918,1753906243359,-363.40617321,0.0002338,2]
[376248921,1753906243374,-96.59382679,0.0002338,2]
[376248924,1753906243390,-460.0,0.0002338,2]
[376248926,1753906243404,-487.46,0.0002338,2]
[376248928,1753906243414,-1346.55,0.0002338,2]
[376248930,1753906243424,-460.0,0.00023381,2]
[376248932,1753906243434,-460.0,0.00023381,2]
[376248934,1753906243445,-537.79,0.00023381,2]
[376248936,1753906243454,-460.0,0.00023381,2]
[376248939,1753906243465,-1233.36,0.00023382,2]
[376248941,1753906243475,-1201.36,0.00023382,2]
[376248943,1753906243485,-584.19,0.00023382,2]
[376248945,1753906243495,-452.02,0.000234,7]
[376248947,1753906243505,-820.06,0.00023559,2]
[376248949,1753906243514,-1442.48,0.00023559,2]
[376248951,1753906243524,-476.61691337,0.00023559,2]
[376248953,1753906243533,-597.0,0.0002357,2]
[376248955,1753906243543,-460.0,0.0002357,2]
[376248957,1753906243553,-749.46,0.0002357,2]
[376248959,1753906243563,-1307.86356111,0.00023589,2]
[376248961,1753906243572,-460.0,0.00023653,2]
[376248963,1753906243582,-460.0,0.00023653,2]
[376248965,1753906243592,-1261.41,0.00023653,2]
[376248967,1753906243601,-460.0,0.00023654,2]
[376248969,1753906243611,-460.0,0.00023654,2]
[376248971,1753906243622,-2233.28,0.00023654,2]
[376248973,1753906243632,-460.0,0.00023654,2]
[376248975,1753906243644,-460.0,0.00023654,2]
[376248977,1753906243654,-460.0,0.00023654,2]
[376248979,1753906243664,-460.0,0.00023654,2]
[376248981,1753906243674,-460.0,0.00023654,2]
[376248983,1753906243684,-1773.75,0.00023654,2]
[376248985,1753906243694,-64.62664108,0.00023654,2]
[376248988,1753906243711,-395.37335892,0.00023654,2]
[376248990,1753906243722,-592.4,0.00023654,2]
[376248992,1753906243733,-460.0,0.00023654,2]
[376248994,1753906243745,-3486.61,0.00023654,2]
[376248996,1753906243755,-981.84,0.00023654,2]
[376248998,1753906243765,-621.21,0.00023654,2]
[376249000,1753906243775,-460.0,0.00023654,2]
[376249002,1753906243784,-460.0,0.00023654,2]
[376249004,1753906243794,-224.56,0.00023654,2]
[376249006,1753906243803,-487.46,0.00023654,2]
[376249008,1753906243813,-460.0,0.00023655,2]
[376249010,1753906243823,-460.0,0.00023655,2]
[376249012,1753906243833,-537.79,0.00023655,2]
[376249014,1753906243842,-460.0,0.00023655,2]
[376249016,1753906243851,-1233.36,0.00023656,2]
[376249018,1753906243861,-1201.36,0.00023656,2]
[376249020,1753906243870,-584.19,0.00023656,2]
[376249022,1753906243880,-501.48761306,0.00023667,2]
[376249024,1753906243889,-225.12,0.00023702,2]
[376249026,1753906243898,-150.0,0.00023728,2]
[376249028,1753906243908,-2146.0,0.00023728,2]
[376249030,1753906243917,-565.73,0.00023783,7]
[376249032,1753906243926,-1017.11,0.00023794,7]
[376249034,1753906243935,-820.06,0.00023833,2]
[376249036,1753906243944,-1442.48,0.00023833,2]
[376249038,1753906243954,-597.0,0.00023844,2]
[376249040,1753906243965,-460.0,0.00023844,2]
[376249042,1753906243974,-749.46,0.00023844,2]
[376249044,1753906243983,-260.0,0.00023848,2]
[376249046,1753906243993,-565.73,0.00023883,7]
[376249048,1753906244002,-1017.11,0.00023894,7]
[376249050,1753906244012,-500.0,0.00023926,2]
[376249052,1753906244021,-404.93819947,0.00023927,2]
[376249054,1753906244030,-460.0,0.00023927,2]
[376249056,1753906244040,-1261.41,0.00023927,2]
[376249058,1753906244050,-317.9712607,0.00023927,2]
[376249060,1753906244060,-263.51440671,0.00023927,2]
[376249062,1753906244069,-500.0,0.00023927,2]
[376249064,1753906244078,-460.0,0.00023928,2]
[376249066,1753906244088,-460.0,0.00023928,2]
[376249068,1753906244097,-2233.28,0.00023928,2]
[376249070,1753906244106,-460.0,0.00023928,2]
[376249072,1753906244118,-460.0,0.00023928,2]
[376249074,1753906244127,-460.0,0.00023928,2]
[376249076,1753906244136,-460.0,0.00023928,2]
[376249078,1753906244146,-187.47689805,0.00023928,2]
[376249080,1753906244155,-1773.75,0.00023928,2]
[376249082,1753906244165,-460.0,0.00023928,2]
[376249084,1753906244174,-592.4,0.00023928,2]
[376249086,1753906244185,-460.0,0.00023928,2]
[376249088,1753906244195,-3486.61,0.00023928,2]
[376249090,1753906244205,-981.84,0.00023928,2]
[376249092,1753906244216,-621.21,0.00023928,2]
[376249094,1753906244226,-434.06559774,0.00023928,2]
[376249096,1753906244237,-460.0,0.00023928,2]
[376249098,1753906244247,-487.46,0.00023928,2]
[376249100,1753906244256,-460.0,0.00023929,2]
[376249102,1753906244265,-460.0,0.00023929,2]
[376249104,1753906244275,-537.79,0.00023929,2]
[376249106,1753906244284,-460.0,0.00023929,2]
[376249108,1753906244293,-1233.36,0.0002393,2]
[376249110,1753906244302,-1201.36,0.0002393,2]
[376249112,1753906244312,-584.19,0.0002393,2]
[376249114,1753906244321,-565.73,0.00023983,7]
[376249116,1753906244330,-1307.86356111,0.00023994,2]
[376249118,1753906244340,-1017.11,0.00023994,7]
[376249120,1753906244350,-200.0,0.00024026,15]
[376249122,1753906244360,-200.0,0.00024026,15]
[376249124,1753906244369,-200.0,0.00024026,15]
[376249126,1753906244378,-200.0,0.00024026,15]
[376249128,1753906244388,-200.0,0.00024026,15]
[376249130,1753906244397,-200.0,0.00024026,15]
[376249132,1753906244407,-200.0,0.00024026,15]
[376249134,1753906244416,-200.0,0.00024026,15]
[376249136,1753906244426,-200.0,0.00024026,15]
[376249138,1753906244435,-200.0,0.00024026,15]
[376249140,1753906244445,-200.0,0.00024026,15]
[376249142,1753906244455,-200.0,0.00024026,15]
[376249144,1753906244466,-200.0,0.00024026,15]
[376249147,1753906244476,-200.0,0.00024026,15]
[376249149,1753906244486,-565.74,0.00024083,7]
[376249151,1753906244495,-1017.11,0.00024094,7]
[376249153,1753906244504,-820.06,0.00024107,2]
[376249155,1753906244514,-1442.48,0.00024107,2]
[376249157,1753906244523,-597.0,0.00024118,2]
[376249159,1753906244533,-460.0,0.00024118,2]
[376249161,1753906244543,-749.46,0.00024118,2]
[376249163,1753906244552,-8976.47453769,0.00024158,2]
[376249165,1753906244562,-1017.11,0.00024194,7]
[376249167,1753906244571,-156.953805,0.000242,8]
[376249169,1753906244581,-460.0,0.00024201,2]
[376249171,1753906244590,-1179.73955633,0.00024201,2]
[376249173,1753906244606,-81.67044367,0.00024201,2]
[376249175,1753906244616,-460.0,0.00024202,2]
[376249177,1753906244626,-460.0,0.00024202,2]
[376249179,1753906244637,-2233.28,0.00024202,2]
[376249181,1753906244649,-460.0,0.00024202,2]
[376249183,1753906244659,-460.0,0.00024202,2]
[376249185,1753906244668,-460.0,0.00024202,2]
[376249187,1753906244680,-460.0,0.00024202,2]
[376249189,1753906244690,-1773.75,0.00024202,2]
[376249191,1753906244700,-460.0,0.00024202,2]
[376249193,1753906244711,-592.4,0.00024202,2]
[376249195,1753906244721,-303.51634118,0.00024202,2]
[376249197,1753906244731,-3486.61,0.00024202,2]
[376249199,1753906244740,-981.84,0.00024202,2]
[376249201,1753906244749,-621.21,0.00024202,2]
[376249203,1753906244758,-525.09,0.00024202,2]
[376249205,1753906244767,-487.46,0.00024202,2]
[376249207,1753906244776,-460.0,0.00024203,2]
[376249209,1753906244785,-460.0,0.00024203,2]
[376249211,1753906244794,-537.79,0.00024203,2]
[376249213,1753906244803,-588.17,0.00024203,2]
[376249215,1753906244812,-1233.36,0.00024204,2]
[376249217,1753906244821,-1201.36,0.00024204,2]
[376249219,1753906244831,-584.19,0.00024204,2]
[376249221,1753906244840,-225.12,0.0002427,2]
[376249223,1753906244849,-1017.11,0.00024294,7]
[376249225,1753906244859,-160.0,0.00024294,7]
[376249227,1753906244868,-2200.0,0.00024343,2]
[376249229,1753906244877,-820.06,0.00024381,2]
[376249231,1753906244886,-1442.48,0.00024381,2]
[376249233,1753906244896,-597.0,0.00024392,2]
[376249235,1753906244906,-460.0,0.00024392,2]
[376249237,1753906244915,-749.46,0.00024392,2]
[376249239,1753906244925,-1017.11,0.00024394,7]
[376249241,1753906244934,-360.0,0.00024396,2]
[376249243,1753906244944,-1307.86356111,0.00024398,2]
[376249245,1753906244954,-165.55153134,0.00024411,2]
[376249247,1753906244964,-165.18166665,0.00024411,2]
[376249249,1753906244973,-500.0,0.00024439,2]
[376249251,1753906244982,-800.0,0.00024451,2]
[376249253,1753906244992,-277.58564674,0.0002447,2]
[376249270,1753906245154,-467.00865927,0.00021636,2]
[376249272,1753906245164,-1346.55,0.00023654,2]
[376249274,1753906245174,-1346.55,0.00023928,2]
[376249276,1753906245184,-222.41435326,0.0002447,2]
[376249278,1753906245193,-441.52730327,0.00024473,2]
[376249281,1753906245205,-1342.9060541,0.00024473,2]
[376249283,1753906245220,-23215.56664263,0.00024473,2]
[376249285,1753906245229,-10494.92408845,0.00024473,2]
[376249287,1753906245239,-151.0,0.00024473,2]
[376249289,1753906245249,-151.0,0.00024473,2]
[376249291,1753906245259,-2030.296672,0.00024473,2]
[376249293,1753906245268,-151.0,0.00024473,2]
[376249295,1753906245277,-1000.0,0.00024474,2]
[376249297,1753906245287,-460.0,0.00024475,2]
[376249299,1753906245296,-1261.41,0.00024475,2]
[376249302,1753906245306,-460.0,0.00024476,2]
[376249304,1753906245315,-460.0,0.00024476,2]
[376249306,1753906245324,-2233.28,0.00024476,2]
[376249308,1753906245334,-460.0,0.00024476,2]
[376249314,1753906245379,-460.0,0.00024476,2]
[376249316,1753906245388,-460.0,0.00024476,2]
[376249318,1753906245398,-460.0,0.00024476,2]
[376249320,1753906245407,-217.20856228,0.00024476,2]
[376249346,1753906245718,-1346.55,0.00024202,2]
[376249348,1753906245728,-1556.54143772,0.00024476,2]
[376249350,1753906245737,-460.0,0.00024476,2]
[376249352,1753906245746,-592.4,0.00024476,2]
[376249354,1753906245755,-3486.61,0.00024476,2]
[376249356,1753906245765,-981.84,0.00024476,2]
[376249358,1753906245774,-621.21,0.00024476,2]
[376249360,1753906245783,-487.46,0.00024476,2]
[376249362,1753906245792,-1346.55,0.00024476,2]
[376249364,1753906245801,-460.0,0.00024477,2]
[376249366,1753906245810,-460.0,0.00024477,2]
[376249368,1753906245819,-537.79,0.00024477,2]
[376249370,1753906245834,-1233.36,0.00024478,2]
[376249372,1753906245851,-1201.36,0.00024478,2]
[376249374,1753906245861,-584.19,0.00024478,2]
[376249376,1753906245870,-800.0,0.00024491,2]
[376249379,1753906245887,-1017.11,0.00024494,7]
[376249381,1753906245906,-4718.68,0.000245,7]
[376249383,1753906245915,-1912.006082,0.00024528,2]
[376249385,1753906245924,-500.0,0.00024538,2]
[376249387,1753906245934,-500.0,0.00024562,2]
[376249389,1753906245943,-1017.11,0.00024594,7]
[376249391,1753906245952,-800.0,0.00024647,2]
[376249392,1753906245961,-820.06,0.00024655,2]
[376249394,1753906245970,-1442.48,0.00024655,2]
[376249395,1753906245979,-298.04,0.00024665,2]
[376249398,1753906245989,-597.0,0.00024666,2]
[376249399,1753906246000,-460.0,0.00024666,2]
[376249401,1753906246010,-749.46,0.00024666,2]
[376249403,1753906246019,-1017.11,0.00024694,7]
[376249405,1753906246028,-165.55153134,0.00024712,2]
[376249407,1753906246037,-165.18166665,0.00024712,2]
[376249409,1753906246046,-150.0,0.00024714,30]
[376249411,1753906246055,-500.0,0.00024737,2]
[376249413,1753906246064,-301.54958946,0.00024749,2]
[376249415,1753906246073,-1261.41,0.00024749,2]
[376249417,1753906246082,-460.0,0.0002475,2]
[376249419,1753906246092,-460.0,0.0002475,2]
[376249422,1753906246103,-2233.28,0.0002475,2]
[376249423,1753906246113,-460.0,0.0002475,2]
[376249425,1753906246123,-460.0,0.0002475,2]
[376249428,1753906246133,-331.14,0.0002475,2]
[376249430,1753906246142,-161.99,0.0002475,2]
[376249432,1753906246152,-1773.75,0.0002475,2]
[376249434,1753906246161,-460.0,0.0002475,2]
[376249435,1753906246170,-592.4,0.0002475,2]
[376249437,1753906246180,-3486.61,0.0002475,2]
[376249440,1753906246190,-981.84,0.0002475,2]
[376249442,1753906246198,-621.21,0.0002475,2]
[376249444,1753906246208,-487.46,0.0002475,2]
[376249446,1753906246218,-1346.55,0.0002475,2]
[376249448,1753906246228,-460.0,0.00024751,2]
[376249449,1753906246238,-460.0,0.00024751,2]
[376249452,1753906246247,-537.79,0.00024751,2]
[376249454,1753906246256,-1233.36,0.00024752,2]
[376249456,1753906246266,-1201.36,0.00024752,2]
[376249458,1753906246275,-584.19,0.00024752,2]
[376249460,1753906246284,-1017.11,0.00024794,7]
[376249462,1753906246293,-8611.44926229,0.000248,2]
[376249464,1753906246302,-1307.86356111,0.00024802,2]
[376249466,1753906246312,-800.0,0.00024805,2]
[376249467,1753906246323,-500.0,0.00024821,2]
[376249470,1753906246333,-800.0,0.00024834,2]
[376249472,1753906246343,-225.12,0.00024837,2]
[376249474,1753906246352,-1230.20703747,0.00024863,2]
[376249476,1753906246361,-500.0,0.00024873,2]
[376249478,1753906246371,-500.0,0.00024873,2]
[376249480,1753906246380,-500.0,0.00024873,2]
[376249482,1753906246393,-500.0,0.00024873,2]
[376249484,1753906246402,-500.0,0.00024873,2]
[376249486,1753906246411,-500.0,0.00024873,2]
[376249488,1753906246421,-500.0,0.00024873,2]
[376249490,1753906246431,-275.00774496,0.00024873,2]
[376249492,1753906246440,-500.0,0.00024873,2]
[376249494,1753906246449,-1230.20703747,0.0002489,2]
[376249496,1753906246459,-1017.11,0.00024894,7]
[376249498,1753906246468,-500.0,0.00024899,2]
[376249500,1753906246478,-500.0,0.00024899,2]
[376249502,1753906246487,-155.22452216,0.00024899,2]
[376249504,1753906246496,-500.0,0.00024899,2]
[376249506,1753906246505,-500.0,0.00024899,2]
[376249508,1753906246515,-500.0,0.00024899,2]
[376249510,1753906246524,-500.0,0.00024899,2]
[376249512,1753906246533,-457.75822931,0.00024899,2]
[376249514,1753906246544,-1679.76976734,0.000249,2]
[376249516,1753906246553,-1745.07,0.000249,7]
[376249518,1753906246562,-66646.83,0.000249,2]
[376249520,1753906246572,-705849.641412,0.000249,2]
[376249522,1753906246581,-165.17708606,0.00024911,2]
[376249524,1753906246591,-500.0,0.00024913,2]
[376249526,1753906246600,-2460.41407494,0.00024919,2]
[376249528,1753906246609,-500.0,0.00024923,2]
[376249530,1753906246620,-800.0,0.00024925,2]
[376249532,1753906246629,-820.06,0.00024929,2]
[376249534,1753906246642,-1442.48,0.00024929,2]
[376249536,1753906246652,-75736.76569761,0.00024929,2]
[376249538,1753906246662,-597.0,0.0002494,2]
[376249540,1753906246671,-544.37,0.0002494,2]
[376249542,1753906246680,-749.46,0.0002494,2]
[376249544,1753906246691,-460.0,0.00024944,2]
[376249546,1753906246700,-1017.11,0.00024994,7]
[376249548,1753906246710,-500.0,0.0002501,2]
[376249550,1753906246721,-1230.20703747,0.00025014,2]
[376249552,1753906246730,-25000.0,0.00025021,2]
[376249554,1753906246739,-1500.0,0.00025022,2]
[376249556,1753906246749,-1261.41,0.00025023,2]
[376249558,1753906246758,-460.0,0.00025024,2]
[376249560,1753906246767,-155.94,0.00025024,2]
[376249562,1753906246776,-2233.28,0.00025024,2]
[376249564,1753906246786,-460.0,0.00025024,2]
[376249566,1753906246796,-460.0,0.00025024,2]
[376249568,1753906246805,-1773.75,0.00025024,2]
[376249570,1753906246814,-460.0,0.00025024,2]
[376249572,1753906246824,-592.4,0.00025024,2]
[376249574,1753906246834,-3486.61,0.00025024,2]
[376249576,1753906246843,-981.84,0.00025024,2]
[376249578,1753906246852,-621.21,0.00025024,2]
[376249581,1753906246862,-487.46,0.00025024,2]
[376249583,1753906246871,-1346.55,0.00025024,2]
[376249585,1753906246880,-460.0,0.00025025,2]
[376249587,1753906246890,-460.0,0.00025025,2]
[376249589,1753906246899,-537.79,0.00025025,2]
[376249591,1753906246908,-1233.36,0.00025026,2]
[376249593,1753906246917,-1201.36,0.00025026,2]
[376249595,1753906246926,-584.19,0.00025026,2]
[376249597,1753906246936,-800.0,0.0002504,2]
[376249599,1753906246945,-165.55153134,0.00025041,2]
[376249601,1753906246954,-165.18166665,0.00025041,2]
[376249603,1753906246964,-500.0,0.00025058,2]
[376249605,1753906246973,-500.0,0.00025062,2]
[376249607,1753906246982,-1017.11,0.00025094,7]
[376249609,1753906246992,-452.02,0.000251,7]
[376249611,1753906247001,-2000.0,0.000251,2]
[376249613,1753906247010,-2000.0,0.000251,2]
[376249615,1753906247020,-800.0,0.00025103,2]
[376249617,1753906247030,-296.0,0.00025108,2]
[376249619,1753906247039,-800.0,0.00025108,2]
[376249621,1753906247048,-168.0,0.0002519,2]
[376249623,1753906247057,-1017.11,0.00025194,7]
[376249625,1753906247067,-500.0,0.00025197,2]
[376249627,1753906247076,-820.06,0.00025203,2]
[376249629,1753906247087,-1442.48,0.00025203,2]
[376249631,1753906247097,-172.49512729,0.00025203,2]
[376249633,1753906247107,-500.0,0.00025207,2]
[376249635,1753906247117,-597.0,0.00025214,2]
[376249637,1753906247138,-749.46,0.00025214,2]
[376249639,1753906247154,-800.0,0.00025223,2]
[376249641,1753906247163,-800.0,0.00025233,2]
[376249643,1753906247173,-500.0,0.00025242,2]
[376249645,1753906247182,-500.0,0.00025246,2]
[376249647,1753906247192,-500.0,0.0002529,2]